fUST/lending_fUST_20250704
["ID","MTS","AMOUNT","RATE_DAILY","PERIOD"]
[369470101,1751586653251,-153.0,0.00017,2]
[369470103,1751586653261,-153.0,0.00017,2]
[369470105,1751586653271,-153.0,0.00017,2]
[369470107,1751586653280,-153.0,0.00017,2]
[369470109,1751586653289,-153.0,0.00017,2]
[369470111,1751586653298,-153.0,0.00017,2]
[369470113,1751586653307,-327.2193977,0.00017,2]
[369470115,1751586653317,-153.0,0.00017,2]
[369470117,1751586653326,-177.6570982,0.00017,2]
[369470119,1751586653335,-159.3982008,0.00017,2]
[369470121,1751586653345,-82.1600536,0.00017,2]
[369470691,1751587473596,200.0,0.00024489,120]
[369470692,1751587511256,2275.58467655,0.00024651,60]
[369470693,1751587531844,200.0,0.00027236,120]
[369470694,1751587649683,167.56295304,0.00015153,2]
[369470695,1751587715815,159.223656,0.00013699,2]
[369470735,1751587840198,-1200.0,0.00015906,2]
[369470738,1751587840208,-300.0,0.00015906,2]
[369470740,1751587840218,-245.387967,0.00015907,2]
[369470742,1751587840227,-172.61438151,0.00015907,2]
[369470748,1751587840279,-2115.0,0.00015907,2]
[369470750,1751587840291,-811.47123828,0.00015907,2]
[369470753,1751587840303,-857.15583609,0.00015907,2]
[369470755,1751587840316,-2445.0,0.00015907,2]
[369471003,1751587843053,-1886.22922346,0.00015907,2]
[369471298,1751587845794,-254.77268796,0.00015907,2]
[369471301,1751587845806,-1085.55395,0.00015907,2]
[369471335,1751587846123,-2534.645703,0.00015907,2]
[369471337,1751587846133,-207.4,0.00016428,2]
[369471339,1751587846142,-335.55928266,0.00016437,2]
[369471341,1751587846152,-397.36148433,0.00016437,2]
[369471343,1751587846161,-146.32901503,0.00016437,2]
[369471346,1751587846173,-353.67098497,0.00016437,2]
[369471348,1751587846183,-107.8222682,0.00016437,2]
[369472220,1751587972568,153.6,0.00014801,10]
[369472223,1751588312363,200.0,0.00024962,120]
[369472224,1751588316640,-160.0,0.00016436,2]
[369472225,1751588316662,-300.0,0.00016436,2]
[369472226,1751588316684,-1200.0,0.00016436,2]
[369472227,1751588316708,-300.0,0.00016436,2]
[369472228,1751588316731,-160.0,0.00016436,2]
[369472229,1751588316755,-109.01186931,0.00016437,2]
[369472230,1751588316778,-471.6023513,0.00016437,2]
[369472231,1751588316804,-500.0,0.00016437,2]
[369472232,1751588316829,-500.0,0.00016437,2]
[369472233,1751588316850,-250.16357554,0.00016437,2]
[369472234,1751588316873,-49.22220385,0.00016437,2]
[369472240,1751588731465,200.0,0.00026308,120]
[369472246,1751588941583,159.223656,0.00013699,2]
[369472290,1751589031963,-281.95768232,0.00016338,2]
[369472292,1751589031975,-358.47663803,0.00016338,2]
[369472294,1751589031985,-358.54,0.00016428,3]
[369472296,1751589031994,-207.4,0.00016428,2]
[369472298,1751589032004,-1200.0,0.00016435,2]
[369472300,1751589032014,-1200.0,0.00016436,2]
[369472302,1751589032023,-300.0,0.00016436,2]
[369472304,1751589032033,-129.74281271,0.00016437,2]
[369472306,1751589032043,-500.0,0.00016437,2]
[369472308,1751589032052,-182.1426162,0.00016437,2]
[369472310,1751589032062,-500.0,0.00016437,2]
[369472313,1751589032071,-500.0,0.00016437,2]
[369472316,1751589032080,-500.0,0.00016437,2]
[369472319,1751589032090,-346.49165356,0.00016437,2]
[369472321,1751589032100,-500.0,0.00016437,2]
[369472324,1751589032109,-500.0,0.00016437,2]
[369472326,1751589032119,-500.0,0.00016437,2]
[369472328,1751589032129,-500.0,0.00016437,2]
[369472330,1751589032138,-500.0,0.00016437,2]
[369472332,1751589032147,-500.0,0.00016437,2]
[369472334,1751589032157,-500.0,0.00016437,2]
[369472336,1751589032166,-500.0,0.00016437,2]
[369472338,1751589032176,-268.29029496,0.00016437,2]
[369472340,1751589032186,-500.0,0.00016437,2]
[369472342,1751589032195,-321.21538448,0.00016437,2]
[369472345,1751589032205,-657.06806738,0.00016437,2]
[369472347,1751589032216,-500.0,0.00016437,2]
[369472349,1751589032227,-537.15630997,0.00016437,2]
[369472351,1751589032237,-960.14,0.00016438,2]
[369472353,1751589032246,-1163.54,0.00016438,2]
[369472354,1751589032255,-460.0,0.00016438,2]
[369472356,1751589032265,-171.74048495,0.00016438,2]
[369472358,1751589032275,-460.0,0.00016438,2]
[369472360,1751589032285,-460.0,0.00016438,2]
[369472362,1751589032295,-460.0,0.00016438,2]
[369472365,1751589032305,-601.81174642,0.00016438,2]
[369472367,1751589032314,-460.0,0.00016438,2]
[369472368,1751589032324,-463.12401091,0.00016438,2]
[369472370,1751589032333,-460.0,0.00016438,2]
[369472373,1751589032343,-460.0,0.00016438,2]
[369472375,1751589032353,-460.0,0.00016438,2]
[369472376,1751589032362,-405.56005835,0.00016438,2]
[369472379,1751589032372,-460.0,0.00016438,2]
[369472381,1751589032381,-460.0,0.00016438,2]
[369472382,1751589032390,-460.0,0.00016438,2]
[369472384,1751589032400,-460.0,0.00016438,2]
[369472386,1751589032410,-460.0,0.00016438,2]
[369472389,1751589032419,-460.0,0.00016438,2]
[369472390,1751589032428,-436.12665083,0.00016438,2]
[369472393,1751589032438,-460.0,0.00016438,2]
[369472395,1751589032447,-204.99314269,0.00016438,2]
[369472397,1751589032456,-298.57962969,0.00016438,2]
[369472398,1751589032466,-460.0,0.00016438,2]
[369472400,1751589032476,-460.0,0.00016438,2]
[369472402,1751589032486,-460.0,0.00016438,2]
[369472404,1751589032495,-460.0,0.00016438,2]
[369472406,1751589032505,-453.61960535,0.00016438,2]
[369472425,1751589032675,-460.0,0.00016438,2]
[369472427,1751589032686,-500.0,0.00016438,2]
[369472429,1751589032695,-500.0,0.00016438,2]
[369472431,1751589032704,-460.0,0.00016438,2]
[369472433,1751589032714,-460.0,0.00016438,2]
[369472435,1751589032723,-460.0,0.00016438,2]
[369472437,1751589032733,-554.3362211,0.00016438,2]
[369472439,1751589032743,-460.0,0.00016438,2]
[369472441,1751589032752,-460.0,0.00016438,2]
[369472443,1751589032761,-460.0,0.00016438,2]
[369472444,1751589032771,-460.0,0.00016438,2]
[369472446,1751589032781,-460.0,0.00016438,2]
[369472448,1751589032790,-460.0,0.00016438,2]
[369472449,1751589032799,-460.0,0.00016438,2]
[369472450,1751589032809,-460.0,0.00016438,2]
[369472451,1751589032818,-460.0,0.00016438,2]
[369472452,1751589032827,-460.0,0.00016438,2]
[369472453,1751589032837,-460.0,0.00016438,2]
[369472454,1751589032847,-460.0,0.00016438,2]
[369472455,1751589032857,-460.0,0.00016438,2]
[369472456,1751589032866,-493.06269394,0.00016438,2]
[369472457,1751589032876,-460.0,0.00016438,2]
[369472458,1751589032885,-227.75927338,0.00016438,2]
[369472459,1751589032895,-151.0,0.00016438,2]
[369472460,1751589032904,-460.0,0.00016438,2]
[369472461,1751589032913,-206.91411131,0.00016438,2]
[369472462,1751589032922,-292.67872126,0.00016438,2]
[369472463,1751589032934,-460.0,0.00016438,2]
[369472464,1751589032943,-460.0,0.00016438,2]
[369472465,1751589032953,-423.23930801,0.00016438,2]
[369472466,1751589032962,-460.0,0.00016438,2]
[369472467,1751589032971,-460.0,0.00016438,2]
[369472468,1751589032982,-583.65,0.00016438,2]
[369472469,1751589032991,-460.0,0.00016438,2]
[369472470,1751589033001,-460.0,0.00016438,2]
[369472471,1751589033013,-460.0,0.00016438,2]
[369472472,1751589033023,-507.70626884,0.00016438,2]
[369472473,1751589033033,-460.0,0.00016438,2]
[369472474,1751589033042,-460.0,0.00016438,2]
[369472475,1751589033051,-460.0,0.00016438,2]
[369472476,1751589033060,-460.92758173,0.00016438,2]
[369472477,1751589033070,-460.0,0.00016438,2]
[369472478,1751589033079,-471.80144733,0.00016438,2]
[369472479,1751589033088,-460.0,0.00016438,2]
[369472480,1751589033097,-460.0,0.00016438,2]
[369472481,1751589033106,-460.0,0.00016438,2]
[369472482,1751589033115,-460.0,0.00016438,2]
[369472483,1751589033125,-460.0,0.00016438,2]
[369472484,1751589033134,-460.0,0.00016438,2]
[369472485,1751589033143,-460.0,0.00016438,2]
[369472486,1751589033152,-460.0,0.00016438,2]
[369472487,1751589033161,-466.32635174,0.00016438,2]
[369472488,1751589033170,-460.0,0.00016438,2]
[369472489,1751589033179,-464.74169001,0.00016438,2]
[369472490,1751589033188,-460.0,0.00016438,2]
[369472491,1751589033197,-460.0,0.00016438,2]
[369472492,1751589033206,-460.0,0.00016438,2]
[369472493,1751589033216,-460.0,0.00016438,2]
[369472494,1751589033225,-460.0,0.00016438,2]
[369472495,1751589033234,-460.0,0.00016438,2]
[369472496,1751589033244,-460.0,0.00016438,2]
[369472497,1751589033253,-460.0,0.00016438,2]
[369472498,1751589033262,-525.36906418,0.00016438,2]
[369472499,1751589033271,-460.0,0.00016438,2]
[369472500,1751589033281,-460.0,0.00016438,2]
[369472501,1751589033290,-460.0,0.00016438,2]
[369472502,1751589033299,-460.0,0.00016438,2]
[369472503,1751589033309,-460.0,0.00016438,2]
[369472504,1751589033318,-460.0,0.00016438,2]
[369472505,1751589033328,-460.0,0.00016438,2]
[369472506,1751589033338,-460.0,0.00016438,2]
[369472507,1751589033348,-460.0,0.00016438,2]
[369472508,1751589033357,-460.0,0.00016438,2]
[369472509,1751589033367,-460.0,0.00016438,2]
[369472510,1751589033376,-270.11987022,0.00016438,2]
[369472511,1751589033385,-508.51357748,0.00016438,2]
[369472512,1751589033395,-460.0,0.00016438,2]
[369472513,1751589033405,-460.0,0.00016438,2]
[369472514,1751589033415,-460.0,0.00016438,2]
[369472515,1751589033424,-460.0,0.00016438,2]
[369472516,1751589033434,-472.11840168,0.00016438,2]
[369472517,1751589033444,-460.0,0.00016438,2]
[369472518,1751589033453,-519.77,0.00016438,2]
[369472519,1751589033463,-460.0,0.00016438,2]
[369472520,1751589033473,-460.0,0.00016438,2]
[369472521,1751589033482,-460.0,0.00016438,2]
[369472522,1751589033492,-460.0,0.00016438,2]
[369472523,1751589033501,-460.0,0.00016438,2]
[369472524,1751589033511,-470.94844231,0.00016438,2]
[369472525,1751589033520,-460.0,0.00016438,2]
[369472526,1751589033529,-460.60258009,0.00016438,2]
[369472527,1751589033539,-460.0,0.00016438,2]
[369472528,1751589033548,-460.0,0.00016438,2]
[369472529,1751589033558,-460.0,0.00016438,2]
[369472530,1751589033567,-460.0,0.00016438,2]
[369472531,1751589033577,-460.0,0.00016438,2]
[369472532,1751589033587,-460.0,0.00016438,2]
[369472533,1751589033596,-462.69158793,0.00016438,2]
[369472534,1751589033606,-460.0,0.00016438,2]
[369472535,1751589033615,-460.0,0.00016438,2]
[369472536,1751589033624,-463.65501871,0.00016438,2]
[369472537,1751589033634,-461.5181721,0.00016438,2]
[369472538,1751589033643,-460.0,0.00016438,2]
[369472539,1751589033652,-460.0,0.00016438,2]
[369472540,1751589033662,-460.0,0.00016438,2]
[369472541,1751589033671,-460.0,0.00016438,2]
[369472542,1751589033681,-460.0,0.00016438,2]
[369472543,1751589033690,-279.58246835,0.00016438,2]
[369472544,1751589033700,-460.0,0.00016438,2]
[369472545,1751589033710,-460.0,0.00016438,2]
[369472546,1751589033720,-460.0,0.00016438,2]
[369472547,1751589033729,-460.0,0.00016438,2]
[369472548,1751589033738,-460.0,0.00016438,2]
[369472549,1751589033747,-460.0,0.00016438,2]
[369472550,1751589033757,-460.0,0.00016438,2]
[369472551,1751589033767,-460.0,0.00016438,2]
[369472552,1751589033776,-460.0,0.00016438,2]
[369472553,1751589033785,-460.0,0.00016438,2]
[369472554,1751589033795,-460.0,0.00016438,2]
[369472555,1751589033804,-460.0,0.00016438,2]
[369472556,1751589033814,-461.8703863,0.00016438,2]
[369472557,1751589033823,-460.0,0.00016438,2]
[369472558,1751589033832,-460.0,0.00016438,2]
[369472559,1751589033841,-460.0,0.00016438,2]
[369472560,1751589033851,-465.45541834,0.00016438,2]
[369472561,1751589033860,-460.57470103,0.00016438,2]
[369472562,1751589033870,-460.0,0.00016438,2]
[369472563,1751589033879,-460.0,0.00016438,2]
[369472564,1751589033889,-500.0,0.00016438,2]
[369472565,1751589033899,-460.0,0.00016438,2]
[369472566,1751589033908,-460.0,0.00016438,2]
[369472567,1751589033918,-490.65,0.00016438,2]
[369472568,1751589033929,-460.0,0.00016438,2]
[369472569,1751589033940,-460.0,0.00016438,2]
[369472570,1751589033950,-460.0,0.00016438,2]
[369472571,1751589033960,-460.0,0.00016438,2]
[369472572,1751589033969,-460.0,0.00016438,2]
[369472573,1751589033979,-460.0,0.00016438,2]
[369472574,1751589033988,-460.0,0.00016438,2]
[369472575,1751589033997,-460.0,0.00016438,2]
[369472576,1751589034006,-284.24911831,0.00016438,2]
[369472577,1751589034016,-460.0,0.00016438,2]
[369472578,1751589034026,-460.0,0.00016438,2]
[369472579,1751589034035,-469.71412016,0.00016438,2]
[369472580,1751589034045,-460.0,0.00016438,2]
[369472581,1751589034054,-460.0,0.00016438,2]
[369472582,1751589034064,-460.0,0.00016438,2]
[369472583,1751589034074,-460.0,0.00016438,2]
[369472584,1751589034083,-460.0,0.00016438,2]
[369472585,1751589034093,-460.0,0.00016438,2]
[369472586,1751589034102,-151.0,0.00016438,2]
[369472587,1751589034111,-151.0,0.00016438,2]
[369472588,1751589034121,-431.33452186,0.00016438,2]
[369472589,1751589034131,-403.90917153,0.00016438,2]
[369472590,1751589034140,-151.0,0.00016438,2]
[369472591,1751589034149,-151.0,0.00016438,2]
[369472592,1751589034159,-460.0,0.00016438,2]
[369472593,1751589034169,-460.0,0.00016438,2]
[369472594,1751589034178,-460.0,0.00016438,2]
[369472595,1751589034187,-460.0,0.00016438,2]
[369472596,1751589034196,-460.0,0.00016438,2]
[369472597,1751589034206,-460.0,0.00016438,2]
[369472598,1751589034215,-460.0,0.00016438,2]
[369472599,1751589034225,-460.0,0.00016438,2]
[369472600,1751589034235,-460.0,0.00016438,2]
[369472601,1751589034245,-460.0,0.00016438,2]
[369472602,1751589034254,-460.0,0.00016438,2]
[369472603,1751589034264,-460.0,0.00016438,2]
[369472604,1751589034274,-460.0,0.00016438,2]
[369472605,1751589034283,-460.0,0.00016438,2]
[369472606,1751589034292,-427.02451798,0.00016438,2]
[369472607,1751589034302,-460.0,0.00016438,2]
[369472608,1751589034312,-460.0,0.00016438,2]
[369472609,1751589034322,-460.0,0.00016438,2]
[369472610,1751589034332,-460.0,0.00016438,2]
[369472611,1751589034341,-460.0,0.00016438,2]
[369472612,1751589034350,-460.0,0.00016438,2]
[369472613,1751589034359,-460.0,0.00016438,2]
[369472614,1751589034368,-151.0,0.00016438,2]
[369472615,1751589034378,-460.24682512,0.00016438,2]
[369472616,1751589034387,-460.0,0.00016438,2]
[369472617,1751589034397,-151.0,0.00016438,2]
[369472618,1751589034406,-460.0,0.00016438,2]
[369472619,1751589034415,-500.0,0.00016438,2]
[369472620,1751589034424,-460.0,0.00016438,2]
[369472621,1751589034434,-151.0,0.00016438,2]
[369472622,1751589034444,-463.83841253,0.00016438,2]
[369472623,1751589034453,-151.0,0.00016438,2]
[369472624,1751589034462,-460.0,0.00016438,2]
[369472625,1751589034472,-474.85110472,0.00016438,2]
[369472626,1751589034481,-151.0,0.00016438,2]
[369472627,1751589034490,-151.0,0.00016438,2]
[369472628,1751589034499,-391.02291996,0.00016438,2]
[369472629,1751589034509,-460.0,0.00016438,2]
[369472630,1751589034518,-460.0,0.00016438,2]
[369472631,1751589034528,-460.0,0.00016438,2]
[369472632,1751589034537,-460.0,0.00016438,2]
[369472633,1751589034547,-410.81470254,0.00016438,2]
[369472634,1751589034556,-460.0,0.00016438,2]
[369472635,1751589034566,-460.0,0.00016438,2]
[369472636,1751589034575,-461.07914483,0.00016438,2]
[369472637,1751589034585,-460.0,0.00016438,2]
[369472638,1751589034595,-460.0,0.00016438,2]
[369472639,1751589034604,-460.0,0.00016438,2]
[369472640,1751589034614,-460.0,0.00016438,2]
[369472641,1751589034623,-460.0,0.00016438,2]
[369472642,1751589034632,-460.0,0.00016438,2]
[369472643,1751589034642,-460.0,0.00016438,2]
[369472644,1751589034651,-460.0,0.00016438,2]
[369472645,1751589034661,-1072.33,0.00016438,2]
[369472646,1751589034671,-460.0,0.00016438,2]
[369472647,1751589034680,-460.0,0.00016438,2]
[369472648,1751589034690,-460.0,0.00016438,2]
[369472649,1751589034699,-460.0,0.00016438,2]
[369472650,1751589034709,-303.76682082,0.00016438,2]
[369472651,1751589034719,-460.0,0.00016438,2]
[369472652,1751589034728,-460.0,0.00016438,2]
[369472653,1751589034737,-460.0,0.00016438,2]
[369472654,1751589034748,-500.0,0.00016438,2]
[369472655,1751589034758,-460.0,0.00016438,2]
[369472656,1751589034767,-1214.0,0.00016438,2]
[369472657,1751589034778,-460.0,0.00016438,2]
[369472658,1751589034788,-748.19,0.00016438,2]
[369472659,1751589034798,-460.0,0.00016438,2]
[369472660,1751589034809,-460.0,0.00016438,2]
[369472661,1751589034819,-500.0,0.00016438,2]
[369472662,1751589034829,-460.0,0.00016438,2]
[369472663,1751589034838,-1815.12,0.00016438,2]
[369472664,1751589034848,-500.0,0.00016438,2]
[369472665,1751589034858,-500.0,0.00016438,2]
[369472666,1751589034868,-500.0,0.00016438,2]
[369472667,1751589034879,-500.0,0.00016438,2]
[369472668,1751589034890,-288.28307076,0.00016438,2]
[369472669,1751589034912,-211.71692924,0.00016438,2]
[369472670,1751589034924,-500.0,0.00016438,2]
[369472671,1751589034937,-500.0,0.00016438,2]
[369472672,1751589034948,-572.59,0.00016438,2]
[369472673,1751589034958,-460.0,0.00016438,2]
[369472674,1751589034968,-28.63721163,0.00016438,2]
[369472705,1751589037944,-160.32269418,0.00016438,2]
[369472707,1751589037954,-460.0,0.00016438,2]
[369472708,1751589037963,-460.0,0.00016438,2]
[369472709,1751589037972,-460.0,0.00016438,2]
[369472711,1751589037981,-227.03559072,0.00016438,2]
[369472713,1751589037991,-460.0,0.00016438,2]
[369472715,1751589038000,-460.0,0.00016438,2]
[369472717,1751589038009,-460.0,0.00016438,2]
[369472718,1751589038018,-485.26,0.00016438,2]
[369472719,1751589038028,-460.0,0.00016438,2]
[369472722,1751589038037,-460.0,0.00016438,2]
[369472725,1751589038046,-460.0,0.00016438,2]
[369472727,1751589038055,-527.1188421,0.00016438,2]
[369472729,1751589038064,-460.0,0.00016438,2]
[369472731,1751589038073,-460.0,0.00016438,2]
[369472733,1751589038083,-608.5,0.00016438,2]
[369472735,1751589038092,-460.0,0.00016438,2]
[369472736,1751589038101,-460.0,0.00016438,2]
[369472737,1751589038110,-460.0,0.00016438,2]
[369472738,1751589038119,-460.0,0.00016438,2]
[369472739,1751589038128,-460.0,0.00016438,2]
[369472740,1751589038138,-460.0,0.00016438,2]
[369472741,1751589038147,-460.0,0.00016438,2]
[369472742,1751589038157,-2852.6,0.00016438,2]
[369472743,1751589038166,-460.0,0.00016438,2]
[369472744,1751589038176,-1291.16,0.00016438,2]
[369472745,1751589038186,-460.0,0.00016438,2]
[369472746,1751589038196,-460.0,0.00016438,2]
[369472747,1751589038205,-460.0,0.00016438,2]
[369472748,1751589038215,-460.0,0.00016438,2]
[369472749,1751589038225,-1867.03,0.00016438,2]
[369472750,1751589038235,-617.75,0.00016438,2]
[369472751,1751589038247,-460.0,0.00016438,2]
[369472752,1751589038257,-151.0,0.00016438,2]
[369472753,1751589038267,-160.0,0.00016438,2]
[369472754,1751589038277,-306.12935371,0.00016438,2]
[369472755,1751589038288,-460.0,0.00016438,2]
[369472756,1751589038297,-460.0,0.00016438,2]
[369472757,1751589038307,-460.0,0.00016438,2]
[369472758,1751589038317,-462.11467987,0.00016438,2]
[369472759,1751589038326,-460.0,0.00016438,2]
[369472760,1751589038336,-1225.05,0.00016438,2]
[369472761,1751589038345,-460.0,0.00016438,2]
[369472762,1751589038355,-460.0,0.00016438,2]
[369472763,1751589038365,-460.0,0.00016438,2]
[369472764,1751589038374,-151.0,0.00016438,2]
[369472765,1751589038384,-3077.43,0.00016438,2]
[369472766,1751589038394,-500.0,0.00016438,2]
[369472767,1751589038404,-151.0,0.00016438,2]
[369472768,1751589038414,-472.73,0.00016438,2]
[369472769,1751589038424,-500.0,0.00016438,2]
[369472770,1751589038434,-430.0,0.00016438,2]
[369472771,1751589038444,-892.9,0.00016438,2]
[369472772,1751589038455,-460.0,0.00016438,2]
[369472773,1751589038466,-460.0,0.00016438,2]
[369472774,1751589038476,-4143.69,0.00016438,2]
[369472775,1751589038487,-455.87286784,0.00016438,2]
[369472776,1751589038497,-460.0,0.00016438,2]
[369472777,1751589038507,-460.0,0.00016438,2]
[369472778,1751589038516,-460.0,0.00016438,2]
[369472779,1751589038526,-508.07407931,0.00016438,2]
[369472780,1751589038536,-460.0,0.00016438,2]
[369472781,1751589038546,-504.71779073,0.00016438,2]
[369472782,1751589038556,-460.0,0.00016438,2]
[369472783,1751589038565,-460.0,0.00016438,2]
[369472784,1751589038575,-926.24,0.00016438,2]
[369472785,1751589038584,-460.0,0.00016438,2]
[369472786,1751589038593,-460.0,0.00016438,2]
[369472787,1751589038604,-460.0,0.00016438,2]
[369472788,1751589038613,-460.0,0.00016438,2]
[369472789,1751589038623,-460.0,0.00016438,2]
[369472790,1751589038632,-460.0,0.00016438,2]
[369472791,1751589038642,-460.0,0.00016438,2]
[369472792,1751589038651,-460.0,0.00016438,2]
[369472793,1751589038660,-460.0,0.00016438,2]
[369472794,1751589038670,-151.0,0.00016438,2]
[369472795,1751589038679,-460.0,0.00016438,2]
[369472796,1751589038689,-151.8099724,0.00016438,2]
[369472797,1751589038699,-460.0,0.00016438,2]
[369472798,1751589038709,-460.74009052,0.00016438,2]
[369472799,1751589038719,-272.65372998,0.00016438,2]
[369472800,1751589038730,-460.0,0.00016438,2]
[369472801,1751589038741,-460.0,0.00016438,2]
[369472802,1751589038752,-151.0,0.00016438,2]
[369472803,1751589038762,-206.90205378,0.00016438,2]
[369472804,1751589038773,-578.66057676,0.00016438,2]
[369472805,1751589038783,-460.0,0.00016438,2]
[369472806,1751589038794,-573.37527156,0.00016438,2]
[369472807,1751589038804,-526.9,0.00016438,2]
[369472808,1751589038815,-460.0,0.00016438,2]
[369472809,1751589038825,-460.0,0.00016438,2]
[369472810,1751589038835,-531.64,0.00016438,2]
[369472811,1751589038844,-216.13957219,0.00016438,2]
[369472812,1751589038855,-463.52937223,0.00016438,2]
[369472813,1751589038865,-460.0,0.00016438,2]
[369472814,1751589038874,-467.79265089,0.00016438,2]
[369472815,1751589038884,-460.0,0.00016438,2]
[369472816,1751589038895,-460.0,0.00016438,2]
[369472817,1751589038904,-460.0,0.00016438,2]
[369472818,1751589038914,-460.0,0.00016438,2]
[369472819,1751589038923,-460.0,0.00016438,2]
[369472820,1751589038939,-847.02,0.00016438,2]
[369472821,1751589038950,-460.0,0.00016438,2]
[369472822,1751589038959,-460.0,0.00016438,2]
[369472823,1751589038969,-460.0,0.00016438,2]
[369472824,1751589038979,-460.0,0.00016438,2]
[369472825,1751589038988,-460.0,0.00016438,2]
[369472826,1751589038999,-151.0,0.00016438,2]
[369472827,1751589039011,-460.0,0.00016438,2]
[369472828,1751589039022,-460.0,0.00016438,2]
[369472829,1751589039032,-460.0,0.00016438,2]
[369472830,1751589039041,-460.0,0.00016438,2]
[369472831,1751589039050,-460.0,0.00016438,2]
[369472832,1751589039059,-500.0,0.00016438,2]
[369472833,1751589039070,-500.0,0.00016438,2]
[369472834,1751589039080,-500.0,0.00016438,2]
[369472835,1751589039090,-500.0,0.00016438,2]
[369472836,1751589039099,-500.0,0.00016438,2]
[369472837,1751589039108,-495.20848374,0.00016438,2]
[369472838,1751589039117,-2562.26,0.00016438,2]
[369472839,1751589039126,-460.0,0.00016438,2]
[369472840,1751589039137,-460.0,0.00016438,2]
[369472841,1751589039146,-460.0,0.00016438,2]
[369472842,1751589039155,-460.0,0.00016438,2]
[369472843,1751589039165,-460.0,0.00016438,2]
[369472844,1751589039174,-151.812971,0.00016438,2]
[369472845,1751589039183,-2612.97,0.00016438,2]
[369472846,1751589039192,-460.0,0.00016438,2]
[369472847,1751589039201,-460.0,0.00016438,2]
[369472848,1751589039211,-460.0,0.00016438,2]
[369472849,1751589039220,-563.11,0.00016438,2]
[369472850,1751589039229,-594.47,0.00016438,2]
[369472851,1751589039238,-460.0,0.00016438,2]
[369472852,1751589039247,-686.12,0.00016438,2]
[369472853,1751589039256,-460.0,0.00016438,2]
[369472854,1751589039266,-460.0,0.00016438,2]
[369472855,1751589039276,-460.0,0.00016438,2]
[369472856,1751589039285,-460.0,0.00016438,2]
[369472857,1751589039294,-460.0,0.00016438,2]
[369472858,1751589039304,-460.0,0.00016438,2]
[369472859,1751589039313,-460.0,0.00016438,2]
[369472860,1751589039322,-2691.98,0.00016438,2]
[369472861,1751589039332,-460.0,0.00016438,2]
[369472862,1751589039342,-460.0,0.00016438,2]
[369472863,1751589039351,-460.0,0.00016438,2]
[369472864,1751589039360,-2039.02,0.00016438,2]
[369472865,1751589039370,-460.52266667,0.00016438,2]
[369472866,1751589039379,-460.0,0.00016438,2]
[369472867,1751589039389,-460.0,0.00016438,2]
[369472868,1751589039398,-1180.53,0.00016438,2]
[369472869,1751589039408,-577.85,0.00016438,2]
[369472870,1751589039418,-460.0,0.00016438,2]
[369472871,1751589039427,-460.0,0.00016438,2]
[369472872,1751589039436,-653.97,0.00016438,2]
[369472873,1751589039445,-460.0,0.00016438,2]